[Event "Titled Tuesday Blitz March 22 Late 2022"]
[White "Cappai, Davide"]
[Black "Iskusnyh, Sergei"]
[WhiteFideId "813338"]
[BlackFideId "4120027"]
[WhiteElo "2295"]
[BlackElo "2492"]
[Result "1-0"]
[Round "07"]
[TimeControl "180+1"]
[Date "2022.03.22"]
[WhiteClock "0:01:36"]
[BlackClock "0:00:15"]

1. b3 {[%clk 0:02:46]}  d5 {[%clk 0:02:57]} 2. Bb2 {[%clk 0:02:46]}  Bf5 {[%clk 0:02:57]} 3. f4 {[%clk 0:02:47]}  e6 {[%clk 0:02:55]} 4. Nf3 {[%clk 0:02:47]}  Nf6 {[%clk 0:02:54]} 5. g3 {[%clk 0:02:48]}  h6 {[%clk 0:02:52]} 6. Bg2 {[%clk 0:02:49]}  Be7 {[%clk 0:02:52]} 7. O-O {[%clk 0:02:49]}  O-O {[%clk 0:02:53]} 8. d3 {[%clk 0:02:50]}  c5 {[%clk 0:02:51]} 9. Nbd2 {[%clk 0:02:50]}  Ng4 {[%clk 0:02:44]} 10. e4 {[%clk 0:02:43]}  Ne3 {[%clk 0:02:38]} 11. Qe2 {[%clk 0:02:43]}  Nxf1 {[%clk 0:02:38]} 12. Nxf1 {[%clk 0:02:41]}  dxe4 {[%clk 0:02:32]} 13. dxe4 {[%clk 0:02:41]}  Bh7 {[%clk 0:02:27]} 14. g4 {[%clk 0:02:40]}  Bf6 {[%clk 0:02:19]} 15. e5 {[%clk 0:02:39]}  Be7 {[%clk 0:02:18]} 16. Rd1 {[%clk 0:02:32]}  Qb6 {[%clk 0:02:18]} 17. c4 {[%clk 0:02:32]}  Nc6 {[%clk 0:02:17]} 18. Ng3 {[%clk 0:02:32]}  Rad8 {[%clk 0:02:16]} 19. f5 {[%clk 0:02:32]}  Rxd1+ {[%clk 0:02:14]} 20. Qxd1 {[%clk 0:02:31]}  Rd8 {[%clk 0:02:04]} 21. Qe2 {[%clk 0:02:30]}  Nd4 {[%clk 0:02:03]} 22. Bxd4 {[%clk 0:02:29]}  cxd4 {[%clk 0:02:02]} 23. Qd3 {[%clk 0:02:30]}  Qa5 {[%clk 0:01:59]} 24. a4 {[%clk 0:02:28]}  Qc3 {[%clk 0:01:58]} 25. Bf1 {[%clk 0:02:28]}  a5 {[%clk 0:01:43]} 26. Be2 {[%clk 0:02:27]}  Qc1+ {[%clk 0:01:25]} 27. Kg2 {[%clk 0:02:26]}  Qf4 {[%clk 0:01:26]} 28. h3 {[%clk 0:02:24]}  Qe3 {[%clk 0:01:14]} 29. Nf1 {[%clk 0:02:21]}  Qc1 {[%clk 0:00:58]} 30. Ng3 {[%clk 0:02:20]}  Qc3 {[%clk 0:00:57]} 31. Nf1 {[%clk 0:02:12]}  Bg5 {[%clk 0:00:54]} 32. Nxg5 {[%clk 0:02:07]}  hxg5 {[%clk 0:00:54]} 33. Ng3 {[%clk 0:02:06]}  Qc1 {[%clk 0:00:43]} 34. Bf3 {[%clk 0:01:58]}  b6 {[%clk 0:00:39]} 35. Nh5 {[%clk 0:01:47]}  Qf4 {[%clk 0:00:31]} 36. Nxf4 {[%clk 0:01:46]}  gxf4 {[%clk 0:00:28]} 37. Be4 {[%clk 0:01:46]}  Rc8 {[%clk 0:00:20]} 38. Kf3 {[%clk 0:01:46]}  Rc5 {[%clk 0:00:21]} 39. Kxf4 {[%clk 0:01:46]}  f6 {[%clk 0:00:21]} 40. fxe6 {[%clk 0:01:43]}  fxe5+ {[%clk 0:00:19]} 41. Kg3 {[%clk 0:01:40]}  Rxc4 {[%clk 0:00:17]} 42. Bxh7+ {[%clk 0:01:39]}  Kh8 {[%clk 0:00:16]} 43. bxc4 {[%clk 0:01:39]}  e4 {[%clk 0:00:16]} 44. Qxe4 {[%clk 0:01:40]}  d3 {[%clk 0:00:16]} 45. Qxd3 {[%clk 0:01:37]}  b5 {[%clk 0:00:16]} 46. e7 {[%clk 0:01:38]}  g6 {[%clk 0:00:15]} 47. Qxg6 {[%clk 0:01:36]}  bxc4 {[%clk 0:00:15]} 48. e8=Q# {[%clk 0:01:36]} 1-0


[Site "https://www.chess.com"]

[Event "Titled Tuesday Blitz March 22 Late 2022"]
[White "Curtis, John"]
[Black "Jaskolka, Tomasz"]
[WhiteFideId "3200256"]
[BlackFideId "1170791"]
[WhiteElo "2203"]
[BlackElo "2073"]
[Result "0-1"]
[Round "07"]
[TimeControl "180+1"]
[Date "2022.03.22"]
[WhiteClock "0:00:57"]
[BlackClock "0:00:53"]

1. e4 {[%clk 0:03:00]}  c5 {[%clk 0:03:00]} 2. Nf3 {[%clk 0:02:58]}  e6 {[%clk 0:02:59]} 3. d4 {[%clk 0:02:58]}  cxd4 {[%clk 0:02:59]} 4. Nxd4 {[%clk 0:02:57]}  Nc6 {[%clk 0:02:59]} 5. Nc3 {[%clk 0:02:57]}  Qc7 {[%clk 0:02:59]} 6. Nxc6 {[%clk 0:02:48]}  Qxc6 {[%clk 0:02:58]} 7. Bd3 {[%clk 0:02:49]}  a6 {[%clk 0:02:39]} 8. O-O {[%clk 0:02:38]}  d6 {[%clk 0:02:31]} 9. f4 {[%clk 0:02:35]}  Nf6 {[%clk 0:02:28]} 10. Kh1 {[%clk 0:02:33]}  h5 {[%clk 0:02:20]} 11. Qe1 {[%clk 0:02:27]}  Be7 {[%clk 0:02:17]} 12. e5 {[%clk 0:02:26]}  Ng4 {[%clk 0:02:07]} 13. Be4 {[%clk 0:02:10]}  d5 {[%clk 0:02:05]} 14. Bf3 {[%clk 0:02:09]}  b5 {[%clk 0:02:00]} 15. Qe2 {[%clk 0:01:49]}  Qc4 {[%clk 0:01:47]} 16. Bxg4 {[%clk 0:01:30]}  hxg4 {[%clk 0:01:46]} 17. Qxc4 {[%clk 0:01:27]}  dxc4 {[%clk 0:01:44]} 18. Be3 {[%clk 0:01:24]}  Bb7 {[%clk 0:01:44]} 19. Kg1 {[%clk 0:01:24]}  O-O-O {[%clk 0:01:29]} 20. a3 {[%clk 0:01:19]}  Rh5 {[%clk 0:01:17]} 21. Bf2 {[%clk 0:01:02]}  Rdh8 {[%clk 0:00:57]} 22. Ne2 {[%clk 0:00:57]}  Rxh2 {[%clk 0:00:53]} 0-1


[Site "https://www.chess.com"]

[Event "Titled Tuesday Blitz March 22 Late 2022"]
[White "Debray, Christopher"]
[Black "Vifleemskaia, Svetlana"]
[WhiteFideId "630810"]
[BlackFideId "4129490"]
[WhiteElo "2393"]
[BlackElo "1901"]
[Result "1-0"]
[Round "07"]
[TimeControl "180+1"]
[Date "2022.03.22"]
[WhiteClock "0:00:40"]
[BlackClock "0:00:42"]

1. c4 {[%clk 0:03:00]}  c5 {[%clk 0:02:59]} 2. g3 {[%clk 0:02:59]}  Nf6 {[%clk 0:02:59]} 3. Bg2 {[%clk 0:02:59]}  d5 {[%clk 0:02:59]} 4. cxd5 {[%clk 0:02:56]}  Nxd5 {[%clk 0:03:00]} 5. Nc3 {[%clk 0:02:52]}  Nc7 {[%clk 0:03:00]} 6. e3 {[%clk 0:02:44]}  e5 {[%clk 0:02:58]} 7. Nge2 {[%clk 0:02:42]}  Be7 {[%clk 0:02:57]} 8. d4 {[%clk 0:02:41]}  cxd4 {[%clk 0:02:56]} 9. exd4 {[%clk 0:02:42]}  exd4 {[%clk 0:02:55]} 10. Nxd4 {[%clk 0:02:34]}  O-O {[%clk 0:02:54]} 11. O-O {[%clk 0:02:32]}  Bf6 {[%clk 0:02:51]} 12. Be3 {[%clk 0:02:29]}  Ne6 {[%clk 0:02:46]} 13. Ndb5 {[%clk 0:02:12]}  Qxd1 {[%clk 0:02:37]} 14. Rfxd1 {[%clk 0:02:11]}  Nc6 {[%clk 0:02:36]} 15. Nd6 {[%clk 0:02:04]}  Rd8 {[%clk 0:02:23]} 16. Nce4 {[%clk 0:01:44]}  Bxb2 {[%clk 0:02:15]} 17. Rab1 {[%clk 0:01:44]}  Be5 {[%clk 0:02:13]} 18. f4 {[%clk 0:01:19]}  Bd4 {[%clk 0:02:08]} 19. Nf5 {[%clk 0:01:08]}  Bxe3+ {[%clk 0:02:03]} 20. Nxe3 {[%clk 0:01:09]}  Rxd1+ {[%clk 0:02:00]} 21. Rxd1 {[%clk 0:01:10]}  Ned4 {[%clk 0:01:53]} 22. Nd6 {[%clk 0:01:07]}  Bg4 {[%clk 0:01:51]} 23. Nxg4 {[%clk 0:01:06]}  Rd8 {[%clk 0:01:48]} 24. Bxc6 {[%clk 0:00:56]}  Rxd6 {[%clk 0:01:28]} 25. Ba4 {[%clk 0:00:56]}  b5 {[%clk 0:01:24]} 26. Bb3 {[%clk 0:00:55]}  a5 {[%clk 0:01:07]} 27. Kf2 {[%clk 0:00:48]}  a4 {[%clk 0:01:07]} 28. Bc2 {[%clk 0:00:49]}  h5 {[%clk 0:00:58]} 29. Ne3 {[%clk 0:00:43]}  g6 {[%clk 0:00:51]} 30. Bb1 {[%clk 0:00:40]}  b4 {[%clk 0:00:42]} 31. Nc2 {[%clk 0:00:40]}  Nb5 {[%clk 0:00:41]} 32. Rxd6 {[%clk 0:00:39]}  Nxd6 {[%clk 0:00:42]} 33. Nxb4 {[%clk 0:00:40]} 1-0


[Site "https://www.chess.com"]

[Event "Titled Tuesday Blitz March 22 Late 2022"]
[White "Djokic, Mihailo"]
[Black "Villegas, Pierre"]
[WhiteFideId "976440"]
[BlackFideId "654183"]
[WhiteElo "2093"]
[BlackElo "2395"]
[Result "0-1"]
[Round "07"]
[TimeControl "180+1"]
[Date "2022.03.22"]
[WhiteClock "0:01:19"]
[BlackClock "0:02:04"]

1. e4 {[%clk 0:03:00]}  c6 {[%clk 0:03:00]} 2. d4 {[%clk 0:02:55]}  d5 {[%clk 0:02:59]} 3. e5 {[%clk 0:02:55]}  a6 {[%clk 0:02:59]} 4. c3 {[%clk 0:02:51]}  Bf5 {[%clk 0:02:53]} 5. Ne2 {[%clk 0:02:48]}  e6 {[%clk 0:02:52]} 6. Ng3 {[%clk 0:02:47]}  Bg6 {[%clk 0:02:52]} 7. h4 {[%clk 0:02:47]}  h5 {[%clk 0:02:52]} 8. Be2 {[%clk 0:02:47]}  c5 {[%clk 0:02:52]} 9. Nxh5 {[%clk 0:02:41]}  Bxh5 {[%clk 0:02:50]} 10. Bxh5 {[%clk 0:02:40]}  g6 {[%clk 0:02:49]} 11. Bf3 {[%clk 0:02:29]}  Rxh4 {[%clk 0:02:48]} 12. O-O {[%clk 0:02:27]}  cxd4 {[%clk 0:02:42]} 13. cxd4 {[%clk 0:02:27]}  Nc6 {[%clk 0:02:41]} 14. Be3 {[%clk 0:02:27]}  Rh8 {[%clk 0:02:30]} 15. Nc3 {[%clk 0:02:22]}  Qh4 {[%clk 0:02:25]} 16. Bh5 {[%clk 0:01:34]}  Rxh5 {[%clk 0:02:23]} 17. Qxh5 {[%clk 0:01:34]}  Qxh5 {[%clk 0:02:23]} 18. Rac1 {[%clk 0:01:33]}  Bh6 {[%clk 0:02:20]} 19. Rfe1 {[%clk 0:01:30]}  Nge7 {[%clk 0:02:18]} 20. Na4 {[%clk 0:01:28]}  O-O-O {[%clk 0:02:15]} 21. b4 {[%clk 0:01:27]}  Rh8 {[%clk 0:02:14]} 22. Bxh6 {[%clk 0:01:20]}  Rxh6 {[%clk 0:02:14]} 23. Kf1 {[%clk 0:01:19]}  Qg4 {[%clk 0:02:04]} 0-1


[Site "https://www.chess.com"]

[Event "Titled Tuesday Blitz March 22 Late 2022"]
[White "Domingo Nunez, Alejandro"]
[Black "Ibarra Jerez, Jose Carlos"]
[WhiteFideId "22245561"]
[BlackFideId "2226332"]
[WhiteElo "2215"]
[BlackElo "2626"]
[Result "1-0"]
[Round "07"]
[TimeControl "180+1"]
[Date "2022.03.22"]
[WhiteClock "0:00:10"]
[BlackClock "0:00:07"]

1. c4 {[%clk 0:03:00]}  e5 {[%clk 0:02:59]} 2. Nc3 {[%clk 0:02:58]}  Nc6 {[%clk 0:02:58]} 3. Nf3 {[%clk 0:02:58]}  Nf6 {[%clk 0:02:57]} 4. g3 {[%clk 0:02:58]}  Nd4 {[%clk 0:02:57]} 5. e3 {[%clk 0:02:41]}  Nxf3+ {[%clk 0:02:54]} 6. Qxf3 {[%clk 0:02:42]}  d6 {[%clk 0:02:45]} 7. Bg2 {[%clk 0:02:39]}  c6 {[%clk 0:02:45]} 8. h3 {[%clk 0:02:35]}  Be6 {[%clk 0:02:44]} 9. b3 {[%clk 0:02:31]}  Qd7 {[%clk 0:02:42]} 10. g4 {[%clk 0:02:27]}  h6 {[%clk 0:02:41]} 11. d4 {[%clk 0:02:16]}  exd4 {[%clk 0:02:38]} 12. exd4 {[%clk 0:02:16]}  d5 {[%clk 0:02:39]} 13. c5 {[%clk 0:02:16]}  b6 {[%clk 0:02:33]} 14. Be3 {[%clk 0:02:09]}  bxc5 {[%clk 0:02:31]} 15. dxc5 {[%clk 0:02:10]}  Be7 {[%clk 0:02:24]} 16. Bd4 {[%clk 0:02:08]}  O-O {[%clk 0:02:19]} 17. O-O {[%clk 0:01:59]}  Rab8 {[%clk 0:02:17]} 18. Rad1 {[%clk 0:01:52]}  Rfe8 {[%clk 0:02:13]} 19. Qg3 {[%clk 0:01:42]}  Rb4 {[%clk 0:02:04]} 20. Na4 {[%clk 0:01:41]}  Qc8 {[%clk 0:01:44]} 21. Rfe1 {[%clk 0:01:35]}  Nh7 {[%clk 0:01:13]} 22. Qc3 {[%clk 0:01:33]}  Rxd4 {[%clk 0:00:57]} 23. Qxd4 {[%clk 0:01:34]}  Bf6 {[%clk 0:00:57]} 24. Qf4 {[%clk 0:01:31]}  Nf8 {[%clk 0:00:55]} 25. Qd2 {[%clk 0:01:07]}  Ng6 {[%clk 0:00:49]} 26. f4 {[%clk 0:01:06]}  Nh4 {[%clk 0:00:48]} 27. f5 {[%clk 0:00:40]}  Bd7 {[%clk 0:00:48]} 28. Rxe8+ {[%clk 0:00:41]}  Qxe8 {[%clk 0:00:49]} 29. Re1 {[%clk 0:00:39]}  Qb8 {[%clk 0:00:47]} 30. Qf2 {[%clk 0:00:36]}  Qb4 {[%clk 0:00:44]} 31. Rd1 {[%clk 0:00:36]}  Bc8 {[%clk 0:00:32]} 32. Qd2 {[%clk 0:00:32]}  Qb8 {[%clk 0:00:26]} 33. Qe3 {[%clk 0:00:32]}  Ba6 {[%clk 0:00:25]} 34. Bf1 {[%clk 0:00:28]}  Bxf1 {[%clk 0:00:19]} 35. Kxf1 {[%clk 0:00:29]}  Kh7 {[%clk 0:00:18]} 36. Qf2 {[%clk 0:00:20]}  Qb4 {[%clk 0:00:18]} 37. Nb2 {[%clk 0:00:14]}  Qe4 {[%clk 0:00:17]} 38. Nd3 {[%clk 0:00:11]}  Qh1+ {[%clk 0:00:17]} 39. Ke2 {[%clk 0:00:12]}  Qxh3 {[%clk 0:00:17]} 40. Rg1 {[%clk 0:00:10]}  h5 {[%clk 0:00:09]} 41. g5 {[%clk 0:00:09]}  Bd8 {[%clk 0:00:09]} 42. g6+ {[%clk 0:00:10]}  fxg6 {[%clk 0:00:09]} 43. fxg6+ {[%clk 0:00:10]}  Nxg6 {[%clk 0:00:09]} 44. Rxg6 {[%clk 0:00:10]}  Kxg6 {[%clk 0:00:07]} 45. Nf4+ {[%clk 0:00:10]} 1-0


[Site "https://www.chess.com"]

[Event "Titled Tuesday Blitz March 22 Late 2022"]
[White "Donchenko, Alexander"]
[Black "Vasquez Schroeder, Rodrigo"]
[WhiteFideId "24603295"]
[BlackFideId "3400042"]
[WhiteElo "2539"]
[BlackElo "2561"]
[Result "1/2-1/2"]
[Round "07"]
[TimeControl "180+1"]
[Date "2022.03.22"]
[WhiteClock "0:00:16"]
[BlackClock "0:00:41"]

1. Nf3 {[%clk 0:03:00]}  c5 {[%clk 0:02:59]} 2. c4 {[%clk 0:03:00]}  Nf6 {[%clk 0:02:59]} 3. g3 {[%clk 0:03:01]}  b6 {[%clk 0:02:59]} 4. Bg2 {[%clk 0:03:01]}  Bb7 {[%clk 0:02:59]} 5. O-O {[%clk 0:03:01]}  e6 {[%clk 0:03:00]} 6. Nc3 {[%clk 0:03:01]}  a6 {[%clk 0:03:00]} 7. Re1 {[%clk 0:02:55]}  Be7 {[%clk 0:03:00]} 8. e4 {[%clk 0:02:55]}  d6 {[%clk 0:03:01]} 9. d4 {[%clk 0:02:54]}  cxd4 {[%clk 0:03:01]} 10. Nxd4 {[%clk 0:02:55]}  Qc7 {[%clk 0:03:02]} 11. Be3 {[%clk 0:02:54]}  Nbd7 {[%clk 0:03:03]} 12. Rc1 {[%clk 0:02:46]}  Rc8 {[%clk 0:03:03]} 13. b3 {[%clk 0:02:45]}  O-O {[%clk 0:03:02]} 14. h3 {[%clk 0:02:45]}  Nc5 {[%clk 0:03:00]} 15. Qc2 {[%clk 0:02:44]}  Rb8 {[%clk 0:02:59]} 16. f4 {[%clk 0:02:38]}  Rbc8 {[%clk 0:02:58]} 17. f5 {[%clk 0:02:29]}  e5 {[%clk 0:02:41]} 18. Nde2 {[%clk 0:02:27]}  Qb8 {[%clk 0:02:40]} 19. g4 {[%clk 0:02:27]}  h6 {[%clk 0:02:40]} 20. Ng3 {[%clk 0:02:23]}  b5 {[%clk 0:02:38]} 21. Qe2 {[%clk 0:02:10]}  bxc4 {[%clk 0:02:35]} 22. bxc4 {[%clk 0:02:11]}  Nh7 {[%clk 0:02:31]} 23. Rb1 {[%clk 0:02:01]}  Qc7 {[%clk 0:02:23]} 24. Nd5 {[%clk 0:01:57]}  Bxd5 {[%clk 0:02:23]} 25. cxd5 {[%clk 0:01:56]}  Bg5 {[%clk 0:02:24]} 26. Bf2 {[%clk 0:01:55]}  Nf6 {[%clk 0:02:23]} 27. Nf1 {[%clk 0:01:52]}  Rb8 {[%clk 0:02:18]} 28. Nd2 {[%clk 0:01:40]}  Rxb1 {[%clk 0:02:08]} 29. Nxb1 {[%clk 0:01:40]}  Rb8 {[%clk 0:02:07]} 30. Qc2 {[%clk 0:01:37]}  Qa5 {[%clk 0:02:01]} 31. Nc3 {[%clk 0:01:26]}  Qa3 {[%clk 0:01:57]} 32. Rb1 {[%clk 0:01:24]}  Rxb1+ {[%clk 0:01:51]} 33. Nxb1 {[%clk 0:01:25]}  Qb4 {[%clk 0:01:51]} 34. Nc3 {[%clk 0:01:19]}  h5 {[%clk 0:01:43]} 35. Bf3 {[%clk 0:01:13]}  hxg4 {[%clk 0:01:42]} 36. hxg4 {[%clk 0:01:14]}  Bf4 {[%clk 0:01:38]} 37. Kg2 {[%clk 0:01:14]}  Nh7 {[%clk 0:01:34]} 38. Ne2 {[%clk 0:01:12]}  Ng5 {[%clk 0:01:27]} 39. Nxf4 {[%clk 0:01:08]}  exf4 {[%clk 0:01:25]} 40. e5 {[%clk 0:01:08]}  Qa3 {[%clk 0:01:18]} 41. Qe2 {[%clk 0:00:43]}  dxe5 {[%clk 0:01:17]} 42. Bxc5 {[%clk 0:00:41]}  Qxc5 {[%clk 0:01:17]} 43. Qxe5 {[%clk 0:00:42]}  Qc2+ {[%clk 0:01:13]} 44. Qe2 {[%clk 0:00:42]}  Qc3 {[%clk 0:01:09]} 45. d6 {[%clk 0:00:39]}  Qd4 {[%clk 0:01:07]} 46. Qxa6 {[%clk 0:00:33]}  Qd2+ {[%clk 0:01:05]} 47. Qe2 {[%clk 0:00:32]}  Qxd6 {[%clk 0:01:05]} 48. a4 {[%clk 0:00:20]}  Qa3 {[%clk 0:01:03]} 49. Qd1 {[%clk 0:00:12]}  Qa2+ {[%clk 0:00:57]} 50. Kh1 {[%clk 0:00:11]}  Qf2 {[%clk 0:00:54]} 51. Qd8+ {[%clk 0:00:11]}  Kh7 {[%clk 0:00:53]} 52. Qxg5 {[%clk 0:00:12]}  Qxf3+ {[%clk 0:00:54]} 53. Kg1 {[%clk 0:00:13]}  Qg3+ {[%clk 0:00:53]} 54. Kf1 {[%clk 0:00:13]}  Qd3+ {[%clk 0:00:46]} 55. Kf2 {[%clk 0:00:12]}  Qe3+ {[%clk 0:00:47]} 56. Kf1 {[%clk 0:00:12]}  Qf3+ {[%clk 0:00:44]} 57. Kg1 {[%clk 0:00:13]}  Qg3+ {[%clk 0:00:42]} 58. Kf1 {[%clk 0:00:13]}  f3 {[%clk 0:00:43]} 59. Qd2 {[%clk 0:00:14]}  Qxg4 {[%clk 0:00:42]} 60. Qh2+ {[%clk 0:00:13]}  Kg8 {[%clk 0:00:42]} 61. Qb8+ {[%clk 0:00:14]}  Kh7 {[%clk 0:00:41]} 62. Qh2+ {[%clk 0:00:15]}  Kg8 {[%clk 0:00:41]} 63. Qb8+ {[%clk 0:00:15]}  Kh7 {[%clk 0:00:41]} 64. Qh2+ {[%clk 0:00:16]} 1/2-1/2


[Site "https://www.chess.com"]

[Event "Titled Tuesday Blitz March 22 Late 2022"]
[White "Donchenko, Anatoly"]
[Black "Kokoszczynski, Jan"]
[WhiteFideId "4106091"]
[BlackFideId "1174460"]
[WhiteElo "2339"]
[BlackElo "2163"]
[Result "0-1"]
[Round "07"]
[TimeControl "180+1"]
[Date "2022.03.22"]
[WhiteClock "0:00:15"]
[BlackClock "0:00:07"]

1. Nf3 {[%clk 0:03:00]}  Nf6 {[%clk 0:02:53]} 2. d4 {[%clk 0:03:00]}  g6 {[%clk 0:02:53]} 3. g3 {[%clk 0:02:58]}  c5 {[%clk 0:02:52]} 4. c4 {[%clk 0:02:57]}  cxd4 {[%clk 0:02:50]} 5. Nxd4 {[%clk 0:02:56]}  Bg7 {[%clk 0:02:49]} 6. Bg2 {[%clk 0:02:54]}  Nc6 {[%clk 0:02:49]} 7. Nc3 {[%clk 0:02:54]}  O-O {[%clk 0:02:48]} 8. O-O {[%clk 0:02:53]}  Qa5 {[%clk 0:02:45]} 9. Nb3 {[%clk 0:02:51]}  Qh5 {[%clk 0:02:45]} 10. e4 {[%clk 0:02:50]}  Qxd1 {[%clk 0:02:40]} 11. Rxd1 {[%clk 0:02:49]}  d6 {[%clk 0:02:35]} 12. c5 {[%clk 0:02:47]}  dxc5 {[%clk 0:02:32]} 13. Nxc5 {[%clk 0:02:46]}  e5 {[%clk 0:02:28]} 14. h3 {[%clk 0:02:40]}  b6 {[%clk 0:02:26]} 15. Nb3 {[%clk 0:02:34]}  Be6 {[%clk 0:02:24]} 16. Be3 {[%clk 0:02:32]}  Bxb3 {[%clk 0:01:57]} 17. axb3 {[%clk 0:02:31]}  Na5 {[%clk 0:01:57]} 18. Ra3 {[%clk 0:02:20]}  Rfd8 {[%clk 0:01:55]} 19. Nd5 {[%clk 0:02:14]}  Nxd5 {[%clk 0:01:51]} 20. exd5 {[%clk 0:02:13]}  Rac8 {[%clk 0:01:46]} 21. b4 {[%clk 0:02:09]}  Nc4 {[%clk 0:01:44]} 22. Rxa7 {[%clk 0:02:09]}  Nxe3 {[%clk 0:01:45]} 23. fxe3 {[%clk 0:02:09]}  Rc2 {[%clk 0:01:45]} 24. d6 {[%clk 0:02:05]}  Rxb2 {[%clk 0:01:45]} 25. Bd5 {[%clk 0:02:00]}  Bh6 {[%clk 0:01:43]} 26. e4 {[%clk 0:01:53]}  Be3+ {[%clk 0:01:42]} 27. Kh1 {[%clk 0:01:51]}  Rf2 {[%clk 0:01:42]} 28. d7 {[%clk 0:01:48]}  Kf8 {[%clk 0:01:38]} 29. b5 {[%clk 0:01:44]}  Ke7 {[%clk 0:01:36]} 30. Bc6 {[%clk 0:01:43]}  Bd4 {[%clk 0:01:33]} 31. Ra3 {[%clk 0:01:34]}  h5 {[%clk 0:01:32]} 32. h4 {[%clk 0:01:32]}  f6 {[%clk 0:01:22]} 33. Rdd3 {[%clk 0:01:31]}  f5 {[%clk 0:00:50]} 34. Rf3 {[%clk 0:01:18]}  Rxf3 {[%clk 0:00:46]} 35. Rxf3 {[%clk 0:01:16]}  Ke6 {[%clk 0:00:46]} 36. exf5+ {[%clk 0:01:10]}  gxf5 {[%clk 0:00:47]} 37. Ra3 {[%clk 0:01:09]}  e4 {[%clk 0:00:46]} 38. Kg2 {[%clk 0:01:09]}  Ke7 {[%clk 0:00:42]} 39. Ra4 {[%clk 0:01:04]}  Be5 {[%clk 0:00:41]} 40. Ra2 {[%clk 0:00:58]}  Rg8 {[%clk 0:00:39]} 41. Ra3 {[%clk 0:00:55]}  Bc7 {[%clk 0:00:37]} 42. Kf2 {[%clk 0:00:54]}  Bd6 {[%clk 0:00:32]} 43. Rb3 {[%clk 0:00:50]}  Bc5+ {[%clk 0:00:32]} 44. Kg2 {[%clk 0:00:49]}  Kf6 {[%clk 0:00:30]} 45. Kh3 {[%clk 0:00:47]}  Ke5 {[%clk 0:00:30]} 46. Rb1 {[%clk 0:00:45]}  f4 {[%clk 0:00:27]} 47. gxf4+ {[%clk 0:00:44]}  Kxf4 {[%clk 0:00:28]} 48. Rf1+ {[%clk 0:00:43]}  Ke5 {[%clk 0:00:26]} 49. Rf7 {[%clk 0:00:35]}  e3 {[%clk 0:00:17]} 50. Bf3 {[%clk 0:00:35]}  Bd6 {[%clk 0:00:14]} 51. Bxh5 {[%clk 0:00:33]}  Ke6 {[%clk 0:00:11]} 52. Rf1 {[%clk 0:00:32]}  Rg3+ {[%clk 0:00:10]} 53. Kh2 {[%clk 0:00:32]}  Rg8+ {[%clk 0:00:06]} 54. Kh3 {[%clk 0:00:28]}  Kxd7 {[%clk 0:00:07]} 55. Bg4+ {[%clk 0:00:26]}  Ke7 {[%clk 0:00:07]} 56. Re1 {[%clk 0:00:26]}  Bc5 {[%clk 0:00:07]} 57. Re2 {[%clk 0:00:26]}  Kd6 {[%clk 0:00:08]} 58. h5 {[%clk 0:00:26]}  Ke5 {[%clk 0:00:08]} 59. Kh4 {[%clk 0:00:25]}  Kf4 {[%clk 0:00:07]} 60. Be6 {[%clk 0:00:22]}  Rg3 {[%clk 0:00:04]} 61. h6 {[%clk 0:00:21]}  Be7+ {[%clk 0:00:04]} 62. Kh5 {[%clk 0:00:20]}  Rg5+ {[%clk 0:00:05]} 63. Kh4 {[%clk 0:00:18]}  Rg2+ {[%clk 0:00:05]} 64. Kh3 {[%clk 0:00:18]}  Rxe2 {[%clk 0:00:05]} 65. h7 {[%clk 0:00:18]}  Bf6 {[%clk 0:00:06]} 66. Bg4 {[%clk 0:00:18]}  Rf2 {[%clk 0:00:06]} 67. Bh5 {[%clk 0:00:17]}  Bh8 {[%clk 0:00:06]} 68. Kh4 {[%clk 0:00:16]}  e2 {[%clk 0:00:06]} 69. Bxe2 {[%clk 0:00:16]}  Rxe2 {[%clk 0:00:07]} 70. Kh5 {[%clk 0:00:16]}  Re6 {[%clk 0:00:07]} 71. Kh4 {[%clk 0:00:15]}  Rh6# {[%clk 0:00:07]} 0-1


[Site "https://www.chess.com"]

[Event "Titled Tuesday Blitz March 22 Late 2022"]
[White "Fernandez Siles, Luis"]
[Black "Jeet, Jain"]
[WhiteFideId "2209420"]
[BlackFideId "5073022"]
[WhiteElo "2212"]
[BlackElo "2085"]
[Result "0-1"]
[Round "07"]
[TimeControl "180+1"]
[Date "2022.03.22"]
[WhiteClock "0:00:04"]
[BlackClock "0:01:32"]

1. d4 {[%clk 0:03:00]}  Nf6 {[%clk 0:02:57]} 2. c4 {[%clk 0:02:59]}  c5 {[%clk 0:02:57]} 3. d5 {[%clk 0:02:57]}  b5 {[%clk 0:02:50]} 4. Qc2 {[%clk 0:02:56]}  d6 {[%clk 0:02:45]} 5. e4 {[%clk 0:02:53]}  g6 {[%clk 0:02:44]} 6. f4 {[%clk 0:02:45]}  Bg7 {[%clk 0:02:44]} 7. Nf3 {[%clk 0:02:42]}  O-O {[%clk 0:02:44]} 8. Nc3 {[%clk 0:02:35]}  b4 {[%clk 0:02:42]} 9. Nd1 {[%clk 0:02:33]}  e6 {[%clk 0:02:42]} 10. Bd3 {[%clk 0:02:27]}  exd5 {[%clk 0:02:41]} 11. cxd5 {[%clk 0:02:28]}  Ba6 {[%clk 0:02:36]} 12. Bxa6 {[%clk 0:02:24]}  Nxa6 {[%clk 0:02:37]} 13. O-O {[%clk 0:02:24]}  Re8 {[%clk 0:02:35]} 14. Re1 {[%clk 0:02:13]}  Nc7 {[%clk 0:02:32]} 15. Nd2 {[%clk 0:01:35]}  Nfxd5 {[%clk 0:02:28]} 16. Nc4 {[%clk 0:01:31]}  Nb6 {[%clk 0:02:22]} 17. Be3 {[%clk 0:01:23]}  d5 {[%clk 0:02:07]} 18. exd5 {[%clk 0:01:17]}  Ncxd5 {[%clk 0:02:06]} 19. Nxb6 {[%clk 0:00:56]}  axb6 {[%clk 0:01:58]} 20. Bf2 {[%clk 0:00:41]}  Rxe1+ {[%clk 0:01:55]} 21. Bxe1 {[%clk 0:00:41]}  Nxf4 {[%clk 0:01:55]} 22. Qe4 {[%clk 0:00:35]}  Qd4+ {[%clk 0:01:53]} 23. Qxd4 {[%clk 0:00:32]}  Bxd4+ {[%clk 0:01:54]} 24. Kf1 {[%clk 0:00:32]}  Nd3 {[%clk 0:01:54]} 25. Bd2 {[%clk 0:00:20]}  Nxb2 {[%clk 0:01:53]} 26. Nxb2 {[%clk 0:00:20]}  Bxb2 {[%clk 0:01:54]} 27. Re1 {[%clk 0:00:20]}  Kg7 {[%clk 0:01:49]} 28. Re2 {[%clk 0:00:15]}  Rxa2 {[%clk 0:01:39]} 29. g4 {[%clk 0:00:15]}  Bd4 {[%clk 0:01:33]} 30. Bh6+ {[%clk 0:00:14]}  Kxh6 {[%clk 0:01:34]} 31. Rxa2 {[%clk 0:00:14]}  b3 {[%clk 0:01:34]} 32. Ra3 {[%clk 0:00:10]}  b2 {[%clk 0:01:32]} 33. Rb3 {[%clk 0:00:10]}  c4 {[%clk 0:01:32]} 34. Rb5 {[%clk 0:00:03]}  c3 {[%clk 0:01:32]} 35. g5+ {[%clk 0:00:04]}  Kg7 {[%clk 0:01:32]} 0-1


[Site "https://www.chess.com"]